[Event "Titled Tuesday Blitz May 4 2021"]
[White "Quesada Perez, Yasser"]
[Black "Csonka, Balazs"]
[WhiteFideId "3509362"]
[BlackFideId "742910"]
[WhiteElo "2420"]
[BlackElo "2404"]
[Result "1/2-1/2"]
[Round "04"]
[TimeControl "180+1"]
[Date "2021.05.04"]
[WhiteClock "0:00:03"]
[BlackClock "0:00:04"]

1. e4 {[%clk 0:02:58]}  e6 {[%clk 0:03:00]} 2. d4 {[%clk 0:02:57]}  d5 {[%clk 0:03:00]} 3. Nc3 {[%clk 0:02:57]}  Nf6 {[%clk 0:03:00]} 4. e5 {[%clk 0:02:57]}  Nfd7 {[%clk 0:03:00]} 5. Nce2 {[%clk 0:02:58]}  c5 {[%clk 0:02:55]} 6. c3 {[%clk 0:02:57]}  Nc6 {[%clk 0:02:54]} 7. f4 {[%clk 0:02:54]}  Be7 {[%clk 0:02:50]} 8. Nf3 {[%clk 0:02:54]}  O-O {[%clk 0:02:50]} 9. g3 {[%clk 0:02:53]}  b5 {[%clk 0:02:47]} 10. a3 {[%clk 0:02:47]}  a5 {[%clk 0:02:42]} 11. Bh3 {[%clk 0:02:42]}  Ba6 {[%clk 0:02:21]} 12. O-O {[%clk 0:02:41]}  b4 {[%clk 0:02:17]} 13. Rf2 {[%clk 0:02:39]}  bxc3 {[%clk 0:02:09]} 14. bxc3 {[%clk 0:02:39]}  cxd4 {[%clk 0:02:05]} 15. cxd4 {[%clk 0:02:39]}  g6 {[%clk 0:01:48]} 16. g4 {[%clk 0:01:52]}  f5 {[%clk 0:01:46]} 17. gxf5 {[%clk 0:01:45]}  exf5 {[%clk 0:01:27]} 18. Bg2 {[%clk 0:01:32]}  Re8 {[%clk 0:01:01]} 19. Nc3 {[%clk 0:01:21]}  Nf8 {[%clk 0:00:56]} 20. Be3 {[%clk 0:00:47]}  Ne6 {[%clk 0:00:55]} 21. Bf1 {[%clk 0:00:46]}  Bxf1 {[%clk 0:00:48]} 22. Qxf1 {[%clk 0:00:45]}  Qd7 {[%clk 0:00:28]} 23. Kh1 {[%clk 0:00:43]}  Reb8 {[%clk 0:00:22]} 24. Qd1 {[%clk 0:00:29]}  a4 {[%clk 0:00:18]} 25. Nxa4 {[%clk 0:00:24]}  Ncxd4 {[%clk 0:00:12]} 26. Nxd4 {[%clk 0:00:24]}  Nxd4 {[%clk 0:00:11]} 27. Nc3 {[%clk 0:00:13]}  Nb3 {[%clk 0:00:11]} 28. Rb1 {[%clk 0:00:14]}  Rxa3 {[%clk 0:00:08]} 29. Qxd5+ {[%clk 0:00:13]}  Qxd5+ {[%clk 0:00:08]} 30. Nxd5 {[%clk 0:00:14]}  Bf8 {[%clk 0:00:05]} 31. Rfb2 {[%clk 0:00:14]}  Kf7 {[%clk 0:00:03]} 32. Nf6 {[%clk 0:00:11]}  Be7 {[%clk 0:00:02]} 33. Nd7 {[%clk 0:00:11]}  Rd8 {[%clk 0:00:02]} 34. Rxb3 {[%clk 0:00:06]}  Rxb3 {[%clk 0:00:02]} 35. Rxb3 {[%clk 0:00:07]}  Rxd7 {[%clk 0:00:02]} 36. Kg2 {[%clk 0:00:07]}  Ke6 {[%clk 0:00:02]} 37. Kf3 {[%clk 0:00:07]}  Kf7 {[%clk 0:00:03]} 38. Rb6 {[%clk 0:00:07]}  Rd3 {[%clk 0:00:03]} 39. Rc6 {[%clk 0:00:06]}  Ke8 {[%clk 0:00:02]} 40. h3 {[%clk 0:00:05]}  Kd7 {[%clk 0:00:03]} 41. Rc2 {[%clk 0:00:05]}  Ra3 {[%clk 0:00:03]} 42. Rd2+ {[%clk 0:00:05]}  Ke6 {[%clk 0:00:03]} 43. Rc2 {[%clk 0:00:06]}  Rb3 {[%clk 0:00:03]} 44. Ke2 {[%clk 0:00:06]}  Kd5 {[%clk 0:00:03]} 45. Rd2+ {[%clk 0:00:06]}  Ke6 {[%clk 0:00:02]} 46. Rc2 {[%clk 0:00:06]}  Kd5 {[%clk 0:00:02]} 47. Rc7 {[%clk 0:00:06]}  Ke6 {[%clk 0:00:02]} 48. Rc1 {[%clk 0:00:02]}  Rb2+ {[%clk 0:00:02]} 49. Kf3 {[%clk 0:00:02]}  Rb3 {[%clk 0:00:03]} 50. Ke2 {[%clk 0:00:03]}  Rb2+ {[%clk 0:00:03]} 51. Kf3 {[%clk 0:00:02]}  Rb3 {[%clk 0:00:04]} 52. Ke2 {[%clk 0:00:03]} 1/2-1/2


[Site "https://www.chess.com"]

[Event "Titled Tuesday Blitz May 4 2021"]
[White "Quintiliano Pinto, Renato R."]
[Black "Escobar Forero, Alder"]
[WhiteFideId "2117568"]
[BlackFideId "4400801"]
[WhiteElo "2439"]
[BlackElo "2513"]
[Result "1-0"]
[Round "04"]
[TimeControl "180+1"]
[Date "2021.05.04"]
[WhiteClock "0:00:08"]
[BlackClock "0:00:02"]

1. d4 {[%clk 0:03:00]}  Nf6 {[%clk 0:02:58]} 2. c4 {[%clk 0:03:01]}  d6 {[%clk 0:02:58]} 3. Nf3 {[%clk 0:03:00]}  Nbd7 {[%clk 0:02:57]} 4. Nc3 {[%clk 0:03:00]}  e5 {[%clk 0:02:57]} 5. e4 {[%clk 0:03:00]}  Be7 {[%clk 0:02:57]} 6. Be2 {[%clk 0:03:01]}  O-O {[%clk 0:02:57]} 7. O-O {[%clk 0:03:01]}  c6 {[%clk 0:02:57]} 8. Qc2 {[%clk 0:02:56]}  Qc7 {[%clk 0:02:54]} 9. Rd1 {[%clk 0:02:55]}  a6 {[%clk 0:02:52]} 10. Bg5 {[%clk 0:02:44]}  Re8 {[%clk 0:02:49]} 11. Rac1 {[%clk 0:02:42]}  exd4 {[%clk 0:02:37]} 12. Nxd4 {[%clk 0:02:42]}  h6 {[%clk 0:02:21]} 13. Bh4 {[%clk 0:02:22]}  Ne5 {[%clk 0:02:18]} 14. h3 {[%clk 0:02:12]}  Bd7 {[%clk 0:02:11]} 15. Bg3 {[%clk 0:02:06]}  Bf8 {[%clk 0:02:03]} 16. f4 {[%clk 0:01:46]}  Ng6 {[%clk 0:02:02]} 17. Bf3 {[%clk 0:01:46]}  Rad8 {[%clk 0:01:32]} 18. Kh1 {[%clk 0:01:44]}  Bc8 {[%clk 0:01:32]} 19. Qf2 {[%clk 0:01:24]}  Qa5 {[%clk 0:01:28]} 20. Bh2 {[%clk 0:01:11]}  Qb4 {[%clk 0:01:18]} 21. Qd2 {[%clk 0:01:03]}  a5 {[%clk 0:00:50]} 22. a3 {[%clk 0:00:54]}  Qb6 {[%clk 0:00:34]} 23. Re1 {[%clk 0:00:52]}  d5 {[%clk 0:00:25]} 24. cxd5 {[%clk 0:00:48]}  cxd5 {[%clk 0:00:25]} 25. exd5 {[%clk 0:00:37]}  Rxe1+ {[%clk 0:00:21]} 26. Rxe1 {[%clk 0:00:38]}  Bd6 {[%clk 0:00:16]} 27. Ndb5 {[%clk 0:00:20]}  Bb8 {[%clk 0:00:11]} 28. f5 {[%clk 0:00:20]}  Bxh2 {[%clk 0:00:10]} 29. fxg6 {[%clk 0:00:20]}  Bg3 {[%clk 0:00:10]} 30. gxf7+ {[%clk 0:00:20]}  Kxf7 {[%clk 0:00:10]} 31. Rf1 {[%clk 0:00:21]}  Qc5 {[%clk 0:00:08]} 32. Nd4 {[%clk 0:00:21]}  Be5 {[%clk 0:00:07]} 33. Ne6 {[%clk 0:00:21]}  Bxe6 {[%clk 0:00:06]} 34. dxe6+ {[%clk 0:00:21]}  Ke7 {[%clk 0:00:06]} 35. Qe2 {[%clk 0:00:22]}  Bxc3 {[%clk 0:00:05]} 36. bxc3 {[%clk 0:00:23]}  Qxc3 {[%clk 0:00:06]} 37. Bxb7 {[%clk 0:00:23]}  Qxa3 {[%clk 0:00:05]} 38. Bf3 {[%clk 0:00:19]}  Qd6 {[%clk 0:00:06]} 39. Re1 {[%clk 0:00:19]}  Rc8 {[%clk 0:00:06]} 40. Qe3 {[%clk 0:00:17]}  Rc7 {[%clk 0:00:04]} 41. Qb3 {[%clk 0:00:16]}  Qb4 {[%clk 0:00:03]} 42. Qe3 {[%clk 0:00:16]}  a4 {[%clk 0:00:03]} 43. Ra1 {[%clk 0:00:13]}  Qc4 {[%clk 0:00:02]} 44. Qa3+ {[%clk 0:00:13]}  Kxe6 {[%clk 0:00:01]} 45. Re1+ {[%clk 0:00:12]}  Kf7 {[%clk 0:00:01]} 46. Bd1 {[%clk 0:00:11]}  Kg8 {[%clk 0:00:01]} 47. Bxa4 {[%clk 0:00:10]}  Kh8 {[%clk 0:00:02]} 48. Qf8+ {[%clk 0:00:08]} 1-0


[Site "https://www.chess.com"]

[Event "Titled Tuesday Blitz May 4 2021"]
[White "Quirke, Jeffrey"]
[Black "Perez Rodriguez, Jennifer"]
[WhiteFideId "2013029"]
[BlackFideId "3507831"]
[WhiteElo "2245"]
[BlackElo "2170"]
[Result "0-1"]
[Round "04"]
[TimeControl "180+1"]
[Date "2021.05.04"]
[WhiteClock "0:00:01"]
[BlackClock "0:00:17"]

1. d4 {[%clk 0:03:00]}  Nf6 {[%clk 0:02:58]} 2. c4 {[%clk 0:03:00]}  e6 {[%clk 0:02:57]} 3. Nc3 {[%clk 0:03:01]}  d5 {[%clk 0:02:53]} 4. cxd5 {[%clk 0:03:01]}  exd5 {[%clk 0:02:53]} 5. Bg5 {[%clk 0:03:00]}  Be7 {[%clk 0:02:52]} 6. e3 {[%clk 0:03:00]}  O-O {[%clk 0:02:50]} 7. Bd3 {[%clk 0:03:00]}  c6 {[%clk 0:02:50]} 8. Qc2 {[%clk 0:03:00]}  Nbd7 {[%clk 0:02:50]} 9. Nge2 {[%clk 0:03:01]}  Re8 {[%clk 0:02:50]} 10. f3 {[%clk 0:02:59]}  Nf8 {[%clk 0:02:49]} 11. O-O {[%clk 0:02:58]}  b5 {[%clk 0:02:46]} 12. Rad1 {[%clk 0:02:49]}  a5 {[%clk 0:02:41]} 13. Kh1 {[%clk 0:02:44]}  h6 {[%clk 0:02:32]} 14. Bh4 {[%clk 0:02:44]}  Ne6 {[%clk 0:02:26]} 15. Bf2 {[%clk 0:02:39]}  Bb7 {[%clk 0:02:11]} 16. e4 {[%clk 0:02:38]}  dxe4 {[%clk 0:02:03]} 17. fxe4 {[%clk 0:02:38]}  Ng4 {[%clk 0:01:56]} 18. Bg1 {[%clk 0:02:37]}  Bg5 {[%clk 0:01:49]} 19. Rf3 {[%clk 0:02:31]}  Qd6 {[%clk 0:01:39]} 20. h3 {[%clk 0:02:10]}  h5 {[%clk 0:01:21]} 21. hxg4 {[%clk 0:01:45]}  hxg4 {[%clk 0:01:21]} 22. Rg3 {[%clk 0:01:31]}  Nxd4 {[%clk 0:01:10]} 23. Bxd4 {[%clk 0:01:27]}  c5 {[%clk 0:00:44]} 24. Nxb5 {[%clk 0:01:05]}  Qh6+ {[%clk 0:00:42]} 25. Kg1 {[%clk 0:01:04]}  cxd4 {[%clk 0:00:42]} 26. Nbxd4 {[%clk 0:00:34]}  Be3+ {[%clk 0:00:38]} 27. Rxe3 {[%clk 0:00:34]}  Qxe3+ {[%clk 0:00:38]} 28. Kh2 {[%clk 0:00:24]}  g3+ {[%clk 0:00:32]} 29. Nxg3 {[%clk 0:00:12]}  Qxd4 {[%clk 0:00:32]} 30. e5 {[%clk 0:00:13]}  Qxe5 {[%clk 0:00:28]} 31. Bh7+ {[%clk 0:00:10]}  Kh8 {[%clk 0:00:28]} 32. Rd3 {[%clk 0:00:04]}  Rac8 {[%clk 0:00:25]} 33. Qb1 {[%clk 0:00:03]}  g6 {[%clk 0:00:21]} 34. Bxg6 {[%clk 0:00:02]}  fxg6 {[%clk 0:00:21]} 35. Kg1 {[%clk 0:00:02]}  Rcd8 {[%clk 0:00:18]} 36. Rxd8 {[%clk 0:00:01]}  Rxd8 {[%clk 0:00:17]} 0-1


[Site "https://www.chess.com"]

[Event "Titled Tuesday Blitz May 4 2021"]
[White "Ranindu2003"]
[Black "Serikbay, Assel"]
[BlackFideId "13706799"]
[WhiteElo "2591"]
[BlackElo "2044"]
[Result "1-0"]
[Round "04"]
[TimeControl "180+1"]
[Date "2021.05.04"]
[WhiteClock "0:00:27"]
[BlackClock "0:00:03"]

1. e4 {[%clk 0:02:59]}  c5 {[%clk 0:02:57]} 2. Nf3 {[%clk 0:02:59]}  Nc6 {[%clk 0:02:54]} 3. d4 {[%clk 0:02:58]}  cxd4 {[%clk 0:02:54]} 4. c3 {[%clk 0:02:59]}  Nf6 {[%clk 0:02:51]} 5. e5 {[%clk 0:02:59]}  Nd5 {[%clk 0:02:52]} 6. cxd4 {[%clk 0:02:59]}  e6 {[%clk 0:02:51]} 7. Nc3 {[%clk 0:02:58]}  d6 {[%clk 0:02:51]} 8. Bd3 {[%clk 0:02:57]}  Be7 {[%clk 0:02:47]} 9. O-O {[%clk 0:02:57]}  O-O {[%clk 0:02:46]} 10. Qe2 {[%clk 0:02:56]}  g6 {[%clk 0:02:36]} 11. Rd1 {[%clk 0:02:55]}  dxe5 {[%clk 0:02:24]} 12. dxe5 {[%clk 0:02:55]}  Nxc3 {[%clk 0:02:20]} 13. bxc3 {[%clk 0:02:54]}  Qc7 {[%clk 0:02:20]} 14. Bf4 {[%clk 0:02:42]}  b6 {[%clk 0:02:10]} 15. h4 {[%clk 0:02:37]}  Bb7 {[%clk 0:02:01]} 16. h5 {[%clk 0:02:37]}  Rad8 {[%clk 0:02:00]} 17. Qc2 {[%clk 0:02:29]}  Kg7 {[%clk 0:01:20]} 18. Qc1 {[%clk 0:02:18]}  Rfe8 {[%clk 0:01:10]} 19. Bh6+ {[%clk 0:01:56]}  Kh8 {[%clk 0:01:08]} 20. hxg6 {[%clk 0:01:54]}  fxg6 {[%clk 0:01:06]} 21. Qf4 {[%clk 0:01:48]}  Bf8 {[%clk 0:00:30]} 22. Bg5 {[%clk 0:01:35]}  Rd5 {[%clk 0:00:21]} 23. Bf6+ {[%clk 0:01:31]}  Kg8 {[%clk 0:00:21]} 24. c4 {[%clk 0:01:26]}  Rc5 {[%clk 0:00:18]} 25. Qh4 {[%clk 0:01:09]}  Bg7 {[%clk 0:00:17]} 26. Re1 {[%clk 0:01:08]}  Bxf6 {[%clk 0:00:11]} 27. exf6 {[%clk 0:01:09]}  e5 {[%clk 0:00:11]} 28. Ng5 {[%clk 0:01:06]}  Nd8 {[%clk 0:00:11]} 29. f7+ {[%clk 0:01:06]}  Nxf7 {[%clk 0:00:10]} 30. Qxh7+ {[%clk 0:01:03]}  Kf8 {[%clk 0:00:10]} 31. Bxg6 {[%clk 0:01:02]}  Nxg5 {[%clk 0:00:10]} 32. Qh8+ {[%clk 0:01:03]}  Ke7 {[%clk 0:00:10]} 33. Qxe8+ {[%clk 0:01:03]}  Kf6 {[%clk 0:00:11]} 34. Bh5 {[%clk 0:00:50]}  Ne4 {[%clk 0:00:06]} 35. Qg6+ {[%clk 0:00:48]}  Ke7 {[%clk 0:00:06]} 36. Rxe4 {[%clk 0:00:47]}  Bxe4 {[%clk 0:00:06]} 37. Qxe4 {[%clk 0:00:48]}  Rxc4 {[%clk 0:00:07]} 38. Qe3 {[%clk 0:00:45]}  Rc3 {[%clk 0:00:06]} 39. Qg5+ {[%clk 0:00:44]}  Kd6 {[%clk 0:00:06]} 40. Rd1+ {[%clk 0:00:42]}  Kc5 {[%clk 0:00:07]} 41. Qd2 {[%clk 0:00:38]}  Kb4 {[%clk 0:00:03]} 42. Rb1+ {[%clk 0:00:35]}  Ka5 {[%clk 0:00:03]} 43. Rc1 {[%clk 0:00:35]}  Kb4 {[%clk 0:00:02]} 44. a3+ {[%clk 0:00:27]}  Kb3 {[%clk 0:00:03]} 45. Bf7+ {[%clk 0:00:27]} 1-0


[Site "https://www.chess.com"]

[Event "Titled Tuesday Blitz May 4 2021"]
[White "Roque Sola, Gisela"]
[Black "Moore, Nicholas"]
[WhiteFideId "5120241"]
[BlackFideId "4303709"]
[WhiteElo "1863"]
[BlackElo "2359"]
[Result "0-1"]
[Round "04"]
[TimeControl "180+1"]
[Date "2021.05.04"]
[WhiteClock "0:00:21"]
[BlackClock "0:00:18"]

1. c4 {[%clk 0:03:00]}  Nf6 {[%clk 0:02:58]} 2. Nf3 {[%clk 0:02:58]}  c6 {[%clk 0:02:57]} 3. g3 {[%clk 0:02:57]}  d5 {[%clk 0:02:56]} 4. b3 {[%clk 0:02:57]}  h6 {[%clk 0:02:54]} 5. Bg2 {[%clk 0:02:57]}  Bf5 {[%clk 0:02:54]} 6. d3 {[%clk 0:02:56]}  e6 {[%clk 0:02:54]} 7. O-O {[%clk 0:02:55]}  Nbd7 {[%clk 0:02:53]} 8. Bb2 {[%clk 0:02:53]}  Bd6 {[%clk 0:02:51]} 9. Nbd2 {[%clk 0:02:52]}  Qe7 {[%clk 0:02:48]} 10. Re1 {[%clk 0:02:51]}  Bh7 {[%clk 0:02:46]} 11. e4 {[%clk 0:02:42]}  dxe4 {[%clk 0:02:47]} 12. dxe4 {[%clk 0:02:42]}  e5 {[%clk 0:02:46]} 13. Nh4 {[%clk 0:02:19]}  Ba3 {[%clk 0:02:37]} 14. Bxa3 {[%clk 0:02:16]}  Qxa3 {[%clk 0:02:35]} 15. Nf5 {[%clk 0:02:16]}  O-O {[%clk 0:02:33]} 16. Nf3 {[%clk 0:02:00]}  Rad8 {[%clk 0:02:30]} 17. Qc2 {[%clk 0:01:58]}  Rfe8 {[%clk 0:02:23]} 18. Rad1 {[%clk 0:01:49]}  Bxf5 {[%clk 0:01:11]} 19. exf5 {[%clk 0:01:50]}  Qc5 {[%clk 0:01:02]} 20. Rd2 {[%clk 0:01:24]}  e4 {[%clk 0:00:58]} 21. Nh4 {[%clk 0:01:20]}  Qb6 {[%clk 0:00:45]} 22. Rde2 {[%clk 0:01:16]}  Nc5 {[%clk 0:00:43]} 23. Qc3 {[%clk 0:01:04]}  Rd3 {[%clk 0:00:41]} 24. Qc2 {[%clk 0:00:59]}  Rdd8 {[%clk 0:00:32]} 25. Qc3 {[%clk 0:00:59]}  a5 {[%clk 0:00:32]} 26. Kh1 {[%clk 0:00:50]}  Nd3 {[%clk 0:00:32]} 27. Rf1 {[%clk 0:00:47]}  Ng4 {[%clk 0:00:27]} 28. Qc2 {[%clk 0:00:41]}  Ngxf2+ {[%clk 0:00:18]} 29. Rfxf2 {[%clk 0:00:40]}  Nxf2+ {[%clk 0:00:19]} 30. Rxf2 {[%clk 0:00:40]}  Rd1+ {[%clk 0:00:17]} 31. Qxd1 {[%clk 0:00:38]}  Qxf2 {[%clk 0:00:15]} 32. Qf1 {[%clk 0:00:32]}  Qxa2 {[%clk 0:00:15]} 33. f6 {[%clk 0:00:29]}  e3 {[%clk 0:00:14]} 34. fxg7 {[%clk 0:00:26]}  e2 {[%clk 0:00:14]} 35. Qe1 {[%clk 0:00:26]}  Qd2 {[%clk 0:00:13]} 36. Qxd2 {[%clk 0:00:23]}  e1=Q+ {[%clk 0:00:14]} 37. Qxe1 {[%clk 0:00:23]}  Rxe1+ {[%clk 0:00:14]} 38. Bf1 {[%clk 0:00:23]}  Rxf1+ {[%clk 0:00:15]} 39. Kg2 {[%clk 0:00:23]}  Rf6 {[%clk 0:00:12]} 40. Nf3 {[%clk 0:00:21]}  Rxf3 {[%clk 0:00:12]} 41. Kxf3 {[%clk 0:00:20]}  b5 {[%clk 0:00:13]} 42. cxb5 {[%clk 0:00:20]}  cxb5 {[%clk 0:00:14]} 43. Ke4 {[%clk 0:00:19]}  Kxg7 {[%clk 0:00:14]} 44. Kd4 {[%clk 0:00:20]}  Kg6 {[%clk 0:00:14]} 45. Kc5 {[%clk 0:00:20]}  a4 {[%clk 0:00:15]} 46. bxa4 {[%clk 0:00:20]}  bxa4 {[%clk 0:00:15]} 47. Kb4 {[%clk 0:00:20]}  Kg5 {[%clk 0:00:16]} 48. h3 {[%clk 0:00:20]}  Kf5 {[%clk 0:00:16]} 49. Kxa4 {[%clk 0:00:20]}  Ke4 {[%clk 0:00:17]} 50. Kb4 {[%clk 0:00:21]}  Kf3 {[%clk 0:00:17]} 51. Kc4 {[%clk 0:00:21]}  Kxg3 {[%clk 0:00:18]} 52. Kd4 {[%clk 0:00:21]}  Kxh3 {[%clk 0:00:18]} 0-1


[Site "https://www.chess.com"]

[Event "Titled Tuesday Blitz May 4 2021"]
[White "Rustemov, Alexander"]
[Black "Morris-Suzuki, Sophie"]
[WhiteFideId "4119002"]
[BlackFideId "30922615"]
[WhiteElo "2622"]
[BlackElo "2392"]
[Result "1-0"]
[Round "04"]
[TimeControl "180+1"]
[Date "2021.05.04"]
[WhiteClock "0:00:14"]
[BlackClock "0:00:05"]

1. d4 {[%clk 0:03:00]}  Nf6 {[%clk 0:02:59]} 2. c4 {[%clk 0:03:00]}  e6 {[%clk 0:02:59]} 3. Nf3 {[%clk 0:02:59]}  d5 {[%clk 0:03:00]} 4. Nc3 {[%clk 0:02:59]}  Bb4 {[%clk 0:02:59]} 5. Bg5 {[%clk 0:02:58]}  h6 {[%clk 0:02:59]} 6. Bxf6 {[%clk 0:02:56]}  Qxf6 {[%clk 0:02:59]} 7. e3 {[%clk 0:02:56]}  O-O {[%clk 0:02:59]} 8. Qb3 {[%clk 0:02:56]}  Bxc3+ {[%clk 0:02:54]} 9. bxc3 {[%clk 0:02:51]}  c6 {[%clk 0:02:51]} 10. Bd3 {[%clk 0:02:46]}  Nd7 {[%clk 0:02:51]} 11. O-O {[%clk 0:02:45]}  dxc4 {[%clk 0:02:48]} 12. Bxc4 {[%clk 0:02:41]}  e5 {[%clk 0:02:48]} 13. a4 {[%clk 0:02:34]}  a5 {[%clk 0:02:45]} 14. Rfd1 {[%clk 0:02:19]}  e4 {[%clk 0:02:43]} 15. Nd2 {[%clk 0:02:18]}  Qg6 {[%clk 0:02:42]} 16. Qc2 {[%clk 0:02:02]}  Nf6 {[%clk 0:02:42]} 17. Be2 {[%clk 0:01:50]}  Bh3 {[%clk 0:02:41]} 18. Bf1 {[%clk 0:01:44]}  Rae8 {[%clk 0:02:36]} 19. Rab1 {[%clk 0:01:42]}  Re7 {[%clk 0:02:33]} 20. c4 {[%clk 0:01:32]}  Rfe8 {[%clk 0:02:09]} 21. Rb2 {[%clk 0:01:27]}  Bc8 {[%clk 0:02:01]} 22. Rdb1 {[%clk 0:01:23]}  Ng4 {[%clk 0:02:01]} 23. c5 {[%clk 0:01:18]}  Qh5 {[%clk 0:01:50]} 24. h3 {[%clk 0:01:18]}  Nf6 {[%clk 0:01:49]} 25. Nc4 {[%clk 0:01:18]}  Qg5 {[%clk 0:01:43]} 26. Nd6 {[%clk 0:01:16]}  Bxh3 {[%clk 0:01:36]} 27. Nxe8 {[%clk 0:01:14]}  Rxe8 {[%clk 0:01:27]} 28. Rxb7 {[%clk 0:01:14]}  Bc8 {[%clk 0:01:15]} 29. Rc7 {[%clk 0:01:13]}  Ng4 {[%clk 0:01:14]} 30. Be2 {[%clk 0:01:05]}  Qh4 {[%clk 0:00:52]} 31. Bxg4 {[%clk 0:01:04]}  Bxg4 {[%clk 0:00:53]} 32. Rbb7 {[%clk 0:00:58]}  Bh5 {[%clk 0:00:37]} 33. Re7 {[%clk 0:00:52]}  Rxe7 {[%clk 0:00:37]} 34. Rxe7 {[%clk 0:00:53]}  Qxe7 {[%clk 0:00:37]} 35. Qb3 {[%clk 0:00:49]}  Qg5 {[%clk 0:00:35]} 36. Kf1 {[%clk 0:00:47]}  Bg4 {[%clk 0:00:29]} 37. Qb6 {[%clk 0:00:44]}  Qh4 {[%clk 0:00:27]} 38. Kg1 {[%clk 0:00:44]}  Qg5 {[%clk 0:00:16]} 39. Kf1 {[%clk 0:00:35]}  h5 {[%clk 0:00:15]} 40. Qxc6 {[%clk 0:00:32]}  Bf5 {[%clk 0:00:11]} 41. Qe8+ {[%clk 0:00:24]}  Kh7 {[%clk 0:00:11]} 42. c6 {[%clk 0:00:25]}  Qf6 {[%clk 0:00:09]} 43. Kg1 {[%clk 0:00:21]}  h4 {[%clk 0:00:08]} 44. d5 {[%clk 0:00:19]}  Qa1+ {[%clk 0:00:07]} 45. Kh2 {[%clk 0:00:19]}  Qb2 {[%clk 0:00:06]} 46. Qxf7 {[%clk 0:00:18]}  Qe5+ {[%clk 0:00:06]} 47. Kh1 {[%clk 0:00:18]}  Bg6 {[%clk 0:00:05]} 48. Qf4 {[%clk 0:00:17]}  Qa1+ {[%clk 0:00:04]} 49. Kh2 {[%clk 0:00:16]}  h3 {[%clk 0:00:04]} 50. c7 {[%clk 0:00:16]}  hxg2 {[%clk 0:00:04]} 51. Qh4+ {[%clk 0:00:15]}  Kg8 {[%clk 0:00:04]} 52. c8=Q+ {[%clk 0:00:15]}  Kf7 {[%clk 0:00:05]} 53. Qe6+ {[%clk 0:00:14]}  Kf8 {[%clk 0:00:05]} 54. Qh8# {[%clk 0:00:14]} 1-0


[Site "https://www.chess.com"]

[Event "Titled Tuesday Blitz May 4 2021"]
[White "Saravana, Krishnan P."]
[Black "Valle Maytin, Luis Enrique"]
[WhiteFideId "5018382"]
[BlackFideId "3503666"]
[WhiteElo "2245"]
[BlackElo "2307"]
[Result "0-1"]
[Round "04"]
[TimeControl "180+1"]
[Date "2021.05.04"]
[WhiteClock "0:00:03"]
[BlackClock "0:00:09"]

1. e4 {[%clk 0:03:00]}  c5 {[%clk 0:02:59]} 2. Nf3 {[%clk 0:02:58]}  Nc6 {[%clk 0:02:58]} 3. Bb5 {[%clk 0:02:55]}  g6 {[%clk 0:02:58]} 4. c3 {[%clk 0:02:50]}  Nf6 {[%clk 0:02:46]} 5. e5 {[%clk 0:02:47]}  Nd5 {[%clk 0:02:46]} 6. O-O {[%clk 0:02:45]}  Bg7 {[%clk 0:02:41]} 7. Re1 {[%clk 0:02:39]}  O-O {[%clk 0:02:40]} 8. Bc4 {[%clk 0:02:38]}  Nb6 {[%clk 0:02:37]} 9. Bb3 {[%clk 0:02:38]}  c4 {[%clk 0:02:36]} 10. Bc2 {[%clk 0:02:37]}  d5 {[%clk 0:02:32]} 11. h3 {[%clk 0:02:35]}  Bf5 {[%clk 0:02:12]} 12. Bxf5 {[%clk 0:02:33]}  gxf5 {[%clk 0:02:13]} 13. d4 {[%clk 0:02:32]}  cxd3 {[%clk 0:02:05]} 14. Qxd3 {[%clk 0:02:31]}  e6 {[%clk 0:02:05]} 15. Bg5 {[%clk 0:02:22]}  Qc7 {[%clk 0:02:02]} 16. Bf4 {[%clk 0:01:56]}  Nc4 {[%clk 0:01:59]} 17. Qe2 {[%clk 0:01:54]}  Kh8 {[%clk 0:01:50]} 18. b3 {[%clk 0:01:43]}  Nb6 {[%clk 0:01:49]} 19. Na3 {[%clk 0:01:21]}  a6 {[%clk 0:01:41]} 20. Nc2 {[%clk 0:01:20]}  Ne7 {[%clk 0:01:39]} 21. Ncd4 {[%clk 0:01:10]}  Ng6 {[%clk 0:01:25]} 22. Bd2 {[%clk 0:01:02]}  Rac8 {[%clk 0:01:23]} 23. h4 {[%clk 0:01:00]}  Nd7 {[%clk 0:01:20]} 24. Ng5 {[%clk 0:00:43]}  Bxe5 {[%clk 0:00:24]} 25. h5 {[%clk 0:00:29]}  Ne7 {[%clk 0:00:14]} 26. Ndxe6 {[%clk 0:00:16]}  fxe6 {[%clk 0:00:14]} 27. Nxe6 {[%clk 0:00:17]}  Qd6 {[%clk 0:00:14]} 28. Nxf8 {[%clk 0:00:17]}  Rxf8 {[%clk 0:00:15]} 29. Rad1 {[%clk 0:00:16]}  Rg8 {[%clk 0:00:15]} 30. f4 {[%clk 0:00:07]}  Bxf4 {[%clk 0:00:11]} 31. Bxf4 {[%clk 0:00:03]}  Qxf4 {[%clk 0:00:11]} 32. Qxe7 {[%clk 0:00:03]}  Qg4 {[%clk 0:00:09]} 0-1


[Site "https://www.chess.com"]

[Event "Titled Tuesday Blitz May 4 2021"]
[White "Sawlin, Leonid"]
[Black "Moskalenko, Alexander"]
[WhiteFideId "4689542"]
[BlackFideId "4155351"]
[WhiteElo "2554"]
[BlackElo "2758"]
[Result "0-1"]
[Round "04"]
[TimeControl "180+1"]
[Date "2021.05.04"]
[WhiteClock "0:00:26"]
[BlackClock "0:01:18"]

1. e4 {[%clk 0:02:56]}  Nf6 {[%clk 0:03:00]} 2. e5 {[%clk 0:02:55]}  Nd5 {[%clk 0:02:59]} 3. d4 {[%clk 0:02:54]}  d6 {[%clk 0:02:54]} 4. Nf3 {[%clk 0:02:54]}  Nc6 {[%clk 0:02:50]} 5. exd6 {[%clk 0:02:53]}  exd6 {[%clk 0:02:46]} 6. c4 {[%clk 0:02:52]}  Nb6 {[%clk 0:02:46]} 7. d5 {[%clk 0:02:52]}  Ne5 {[%clk 0:02:45]} 8. Nxe5 {[%clk 0:02:52]}  dxe5 {[%clk 0:02:46]} 9. Nc3 {[%clk 0:02:52]}  Bc5 {[%clk 0:02:40]} 10. Be3 {[%clk 0:02:43]}  Bxe3 {[%clk 0:02:39]} 11. fxe3 {[%clk 0:02:44]}  O-O {[%clk 0:02:39]} 12. Qb3 {[%clk 0:01:55]}  Qh4+ {[%clk 0:02:16]} 13. g3 {[%clk 0:01:50]}  Qh5 {[%clk 0:02:16]} 14. Be2 {[%clk 0:01:47]}  Bg4 {[%clk 0:02:15]} 15. c5 {[%clk 0:01:34]}  Nd7 {[%clk 0:02:06]} 16. Qc4 {[%clk 0:01:33]}  Bxe2 {[%clk 0:01:56]} 17. Nxe2 {[%clk 0:01:31]}  Qf3 {[%clk 0:01:55]} 18. Kd2 {[%clk 0:01:32]}  Nf6 {[%clk 0:01:52]} 19. Nc3 {[%clk 0:01:29]}  Nxd5 {[%clk 0:01:48]} 20. Nxd5 {[%clk 0:01:27]}  Rad8 {[%clk 0:01:48]} 21. e4 {[%clk 0:01:28]}  c6 {[%clk 0:01:47]} 22. Qd3 {[%clk 0:00:58]}  cxd5 {[%clk 0:01:47]} 23. Qxf3 {[%clk 0:00:58]}  dxe4+ {[%clk 0:01:47]} 24. Ke3 {[%clk 0:00:58]}  exf3 {[%clk 0:01:47]} 25. Rhd1 {[%clk 0:00:57]}  f5 {[%clk 0:01:45]} 26. Kxf3 {[%clk 0:00:57]}  Kf7 {[%clk 0:01:45]} 27. b4 {[%clk 0:00:52]}  Ke6 {[%clk 0:01:44]} 28. a4 {[%clk 0:00:52]}  g5 {[%clk 0:01:44]} 29. Ke3 {[%clk 0:00:52]}  e4 {[%clk 0:01:42]} 30. g4 {[%clk 0:00:49]}  fxg4 {[%clk 0:01:42]} 31. Rxd8 {[%clk 0:00:48]}  Rxd8 {[%clk 0:01:42]} 32. Kxe4 {[%clk 0:00:49]}  Rd2 {[%clk 0:01:37]} 33. Rc1 {[%clk 0:00:41]}  Re2+ {[%clk 0:01:34]} 34. Kd4 {[%clk 0:00:40]}  Rxh2 {[%clk 0:01:35]} 35. b5 {[%clk 0:00:40]}  Kd7 {[%clk 0:01:31]} 36. Rf1 {[%clk 0:00:35]}  g3 {[%clk 0:01:25]} 37. Rf7+ {[%clk 0:00:32]}  Ke6 {[%clk 0:01:24]} 38. Rg7 {[%clk 0:00:30]}  h6 {[%clk 0:01:20]} 39. c6 {[%clk 0:00:25]}  bxc6 {[%clk 0:01:20]} 40. bxc6 {[%clk 0:00:26]}  g2 {[%clk 0:01:18]} 0-1


[Site "https://www.chess.com"]